fUST/lending_fUST_20240416
["ID","MTS","AMOUNT","RATE_DAILY","PERIOD"]
[322755992,1713247860231,-500.0,0.00034246,7]
[322755993,1713247860240,-511.74,0.00034246,7]
[322755994,1713247860249,-1644.29,0.00034246,7]
[322755995,1713247860258,-500.0,0.00034246,7]
[322755996,1713247860267,-500.0,0.00034246,7]
[322755997,1713247860276,-1644.29,0.00034246,7]
[322755998,1713247860285,-511.74,0.00034246,7]
[322755999,1713247860294,-500.0,0.00034246,7]
[322756000,1713247860303,-500.0,0.00034246,7]
[322756001,1713247860313,-1644.29,0.00034246,7]
[322756002,1713247860322,-500.0,0.00034246,7]
[322756003,1713247860331,-500.0,0.00034246,7]
[322756004,1713247860340,-1644.29,0.00034246,7]
[322756005,1713247860349,-500.0,0.00034246,7]
[322756006,1713247860358,-500.0,0.00034246,7]
[322756007,1713247860369,-511.74,0.00034246,7]
[322756008,1713247860378,-1644.29,0.00034246,7]
[322756009,1713247860389,-302.62476927,0.00034246,7]
[322756010,1713247860398,-511.74,0.00034246,7]
[322756011,1713247860407,-1644.29,0.00034246,7]
[322756012,1713247860416,-500.0,0.00034246,7]
[322756013,1713247860425,-291.19201922,0.00034246,7]
[322756014,1713247860434,-1644.29,0.00034246,7]
[322756015,1713247860445,-511.74,0.00034246,7]
[322756016,1713247860454,-511.74,0.00034246,7]
[322756017,1713247860464,-1644.29,0.00034246,7]
[322756018,1713247860473,-1644.29,0.00034246,7]
[322756019,1713247860481,-511.74,0.00034246,7]
[322756020,1713247860491,-1644.29,0.00034246,7]
[322756021,1713247860500,-511.74,0.00034246,7]
[322756022,1713247860510,-1644.29,0.00034246,7]
[322756023,1713247860519,-511.74,0.00034246,7]
[322756024,1713247860528,-1644.29,0.00034246,7]
[322756025,1713247860537,-511.74,0.00034246,7]
[322756026,1713247860546,-1644.29,0.00034246,7]
[322756027,1713247860554,-511.74,0.00034246,7]
[322756028,1713247860563,-1644.29,0.00034246,7]
[322756029,1713247860572,-1644.29,0.00034246,7]
[322756030,1713247860581,-511.74,0.00034246,7]
[322756031,1713247860591,-1644.29,0.00034246,7]
[322756032,1713247860604,-511.74,0.00034246,7]
[322756033,1713247860613,-1644.29,0.00034246,7]
[322756034,1713247860621,-511.74,0.00034246,7]
[322756035,1713247860630,-1644.29,0.00034246,7]
[322756036,1713247860643,-511.74,0.00034246,7]
[322756037,1713247860652,-1644.29,0.00034246,7]
[322756038,1713247860661,-500.0,0.00034246,7]
[322756039,1713247860670,-511.74,0.00034246,7]
[322756040,1713247860680,-1644.29,0.00034246,7]
[322756041,1713247860690,-507.45649403,0.00034246,7]
[322756042,1713247860699,-511.74,0.00034246,7]
[322756043,1713247860709,-511.74,0.00034246,7]
[322756044,1713247860718,-1644.29,0.00034246,7]
[322756045,1713247860727,-511.74,0.00034246,7]
[322756046,1713247860737,-1644.29,0.00034246,7]
[322756047,1713247860746,-511.74,0.00034246,7]
[322756048,1713247860755,-1644.29,0.00034246,7]
[322756049,1713247860764,-511.74,0.00034246,7]
[322756050,1713247860773,-1644.47914785,0.00034246,7]
[322756051,1713247860783,-511.91,0.00034246,7]
[322756052,1713247860792,-151.0,0.00034246,2]
[322756053,1713247860801,-151.0,0.00034246,2]
[322756054,1713247860810,-151.0,0.00034246,2]
[322756055,1713247860819,-500.0,0.00034246,7]
[322756056,1713247860828,-151.943823,0.00034246,2]
[322756057,1713247860838,-500.0,0.00034246,7]
[322756058,1713247860847,-500.0,0.00034246,7]
[322756059,1713247860856,-500.0,0.00034246,7]
[322756060,1713247860865,-466.58,0.00034246,7]
[322756061,1713247860874,-500.0,0.00034246,7]
[322756062,1713247860883,-500.0,0.00034246,7]
[322756063,1713247860895,-500.0,0.00034246,7]
[322756064,1713247860904,-500.0,0.00034246,7]
[322756066,1713247861003,-500.0,0.00034246,7]
[322756067,1713247861013,-500.0,0.00034246,7]
[322756068,1713247861022,-500.0,0.00034246,7]
[322756069,1713247861031,-500.0,0.00034246,7]
[322756070,1713247861040,-500.0,0.00034246,7]
[322756071,1713247861049,-643.55,0.00034246,7]
[322756072,1713247861059,-500.0,0.00034246,7]
[322756073,1713247861068,-500.0,0.00034246,7]
[322756074,1713247861078,-500.0,0.00034246,7]
[322756075,1713247861088,-500.0,0.00034246,7]
[322756076,1713247861097,-500.0,0.00034246,7]
[322756077,1713247861106,-500.0,0.00034246,7]
[322756078,1713247861115,-500.0,0.00034246,7]
[322756079,1713247861125,-500.0,0.00034246,7]
[322756080,1713247861133,-500.0,0.00034246,7]
[322756081,1713247861145,-500.0,0.00034246,7]
[322756082,1713247861154,-500.0,0.00034246,7]
[322756083,1713247861163,-502.23447012,0.00034246,7]
[322756084,1713247861173,-500.0,0.00034246,7]
[322756085,1713247861182,-500.0,0.00034246,7]
[322756086,1713247861191,-500.0,0.00034246,7]
[322756087,1713247861201,-500.0,0.00034246,7]
[322756088,1713247861210,-500.0,0.00034246,7]
[322756089,1713247861219,-554.14855011,0.00034246,7]
[322756090,1713247861228,-500.0,0.00034246,7]
[322756091,1713247861237,-500.0,0.00034246,7]
[322756092,1713247861246,-512.0982792,0.00034246,7]
[322756093,1713247861256,-507.17159579,0.00034246,7]
[322756094,1713247861265,-500.0,0.00034246,7]
[322756095,1713247861275,-500.0,0.00034246,7]
[322756096,1713247861284,-500.0,0.00034246,7]
[322756097,1713247861293,-500.0,0.00034246,7]
[322756098,1713247861302,-500.0,0.00034246,7]
[322756099,1713247861311,-500.0,0.00034246,7]
[322756100,1713247861320,-500.0,0.00034246,7]
[322756101,1713247861330,-500.0,0.00034246,7]
[322756102,1713247861339,-500.0,0.00034246,7]
[322756103,1713247861348,-500.0,0.00034246,7]
[322756104,1713247861356,-500.0,0.00034246,7]
[322756105,1713247861365,-507.04380864,0.00034246,7]
[322756106,1713247861374,-500.0,0.00034246,7]
[322756107,1713247861383,-500.0,0.00034246,7]
[322756108,1713247861396,-1866.441325,0.00034246,2]
[322756109,1713247861406,-500.0,0.00034246,7]
[322756110,1713247861415,-1866.441325,0.00034246,2]
[322756111,1713247861425,-500.0,0.00034246,7]
[322756112,1713247861434,-500.0,0.00034246,7]
[322756113,1713247861444,-1866.441325,0.00034246,2]
[322756114,1713247861454,-1866.441325,0.00034246,2]
[322756115,1713247861462,-237.39,0.00034246,7]
[322756116,1713247861471,-1866.441325,0.00034246,2]
[322756117,1713247861481,-500.0,0.00034246,7]
[322756118,1713247861490,-1866.441325,0.00034246,2]
[322756119,1713247861499,-500.0,0.00034246,7]
[322756120,1713247861509,-1866.441325,0.00034246,2]
[322756121,1713247861519,-500.0,0.00034246,7]
[322756122,1713247861529,-1866.441325,0.00034246,2]
[322756123,1713247861538,-500.0,0.00034246,7]
[322756124,1713247861547,-500.0,0.00034246,7]
[322756125,1713247861558,-1866.441325,0.00034246,2]
[322756126,1713247861568,-500.0,0.00034246,7]
[322756127,1713247861579,-1866.441325,0.00034246,2]
[322756128,1713247861590,-500.0,0.00034246,7]
[322756129,1713247861600,-1866.441325,0.00034246,2]
[322756130,1713247861609,-500.0,0.00034246,7]
[322756131,1713247861618,-1866.441325,0.00034246,2]
[322756132,1713247861627,-500.0,0.00034246,7]
[322756133,1713247861639,-500.0,0.00034246,7]
[322756134,1713247861648,-1866.441325,0.00034246,2]
[322756135,1713247861657,-500.0,0.00034246,7]
[322756136,1713247861667,-1866.441325,0.00034246,2]
[322756137,1713247861677,-500.0,0.00034246,7]
[322756138,1713247861686,-1866.441325,0.00034246,2]
[322756139,1713247861696,-500.0,0.00034246,7]
[322756140,1713247861705,-500.0,0.00034246,7]
[322756141,1713247861714,-1866.441325,0.00034246,2]
[322756142,1713247861723,-204.23471977,0.00034246,7]
[322756143,1713247861732,-1866.441325,0.00034246,2]
[322756144,1713247861742,-1866.441325,0.00034246,2]
[322756145,1713247861751,-1866.441325,0.00034246,2]
[322756146,1713247861760,-1866.44132,0.00034246,2]
[322756147,1713247861768,-500.0,0.00034246,7]
[322756148,1713247861778,-500.0,0.00034246,7]
[322756149,1713247861787,-500.0,0.00034246,7]
[322756150,1713247861797,-500.0,0.00034246,7]
[322756151,1713247861806,-500.0,0.00034246,7]
[322756152,1713247861815,-500.0,0.00034246,7]
[322756153,1713247861824,-500.0,0.00034246,7]
[322756154,1713247861833,-500.0,0.00034246,7]
[322756155,1713247861842,-502.05246288,0.00034246,7]
[322756156,1713247861851,-500.0,0.00034246,7]
[322756157,1713247861860,-224.419276,0.00034246,2]
[322756158,1713247861869,-500.0,0.00034246,7]
[322756159,1713247861878,-224.419276,0.00034246,2]
[322756160,1713247861890,-500.0,0.00034246,7]
[322756161,1713247861900,-500.0,0.00034246,7]
[322756162,1713247861909,-224.419276,0.00034246,2]
[322756163,1713247861919,-500.0,0.00034246,7]
[322756164,1713247861930,-224.419276,0.00034246,2]
[322756165,1713247861940,-500.0,0.00034246,7]
[322756166,1713247861950,-224.419276,0.00034246,2]
[322756167,1713247861959,-500.0,0.00034246,7]
[322756168,1713247861968,-224.419276,0.00034246,2]
[322756169,1713247861978,-500.0,0.00034246,7]
[322756170,1713247861987,-224.419276,0.00034246,2]
[322756171,1713247861996,-224.419276,0.00034246,2]
[322756172,1713247862005,-500.0,0.00034246,7]
[322756173,1713247862015,-224.419276,0.00034246,2]
[322756174,1713247862025,-500.0,0.00034246,7]
[322756175,1713247862034,-500.0,0.00034246,7]
[322756176,1713247862043,-224.419276,0.00034246,2]
[322756177,1713247862052,-173.21358481,0.00034246,7]
[322756178,1713247862062,-500.0,0.00034246,7]
[322756179,1713247862071,-224.419276,0.00034246,2]
[322756180,1713247862082,-151.0,0.00034246,2]
[322756181,1713247862091,-500.0,0.00034246,7]
[322756182,1713247862100,-151.0,0.00034246,2]
[322756183,1713247862109,-224.419276,0.00034246,2]
[322756184,1713247862117,-151.0,0.00034246,2]
[322756185,1713247862126,-500.0,0.00034246,7]
[322756186,1713247862142,-151.0,0.00034246,2]
[322756187,1713247862184,-224.419276,0.00034246,2]
[322756188,1713247862195,-500.0,0.00034246,7]
[322756189,1713247862205,-151.0,0.00034246,2]
[322756190,1713247862216,-224.419276,0.00034246,2]
[322756191,1713247862225,-500.0,0.00034246,7]
[322756192,1713247862235,-151.0,0.00034246,2]
[322756193,1713247862244,-500.0,0.00034246,7]
[322756194,1713247862254,-224.419276,0.00034246,2]
[322756195,1713247862265,-500.0,0.00034246,7]
[322756196,1713247862274,-151.0,0.00034246,2]
[322756197,1713247862284,-500.0,0.00034246,7]
[322756198,1713247862293,-224.419276,0.00034246,2]
[322756199,1713247862303,-151.0,0.00034246,2]
[322756200,1713247862313,-224.419276,0.00034246,2]
[322756201,1713247862323,-500.0,0.00034246,7]
[322756202,1713247862333,-151.0,0.00034246,2]
[322756203,1713247862343,-224.419276,0.00034246,2]
[322756204,1713247862352,-500.0,0.00034246,7]
[322756205,1713247862362,-500.0,0.00034246,7]
[322756206,1713247862371,-326.69,0.00034246,7]
[322756207,1713247862380,-151.0,0.00034246,2]
[322756208,1713247862392,-224.419276,0.00034246,2]
[322756209,1713247862401,-619.93257223,0.00034246,7]
[322756210,1713247862411,-500.0,0.00034246,7]
[322756211,1713247862421,-224.419275,0.00034246,2]
[322756212,1713247862431,-500.0,0.00034246,7]
[322756213,1713247862440,-151.0,0.00034246,2]
[322756214,1713247862451,-500.0,0.00034246,7]
[322756215,1713247862460,-151.0,0.00034246,2]
[322756216,1713247862471,-500.0,0.00034246,7]
[322756217,1713247862481,-192.9,0.00034246,7]
[322756218,1713247862491,-504.43416724,0.00034246,7]
[322756219,1713247862501,-151.0,0.00034246,2]
[322756220,1713247862511,-151.0,0.00034246,2]
[322756221,1713247862522,-151.0,0.00034246,2]
[322756222,1713247862533,-151.0,0.00034246,2]
[322756223,1713247862543,-163.309783,0.00034246,2]
[322756224,1713247862553,-507.73823549,0.00034246,7]
[322756225,1713247862564,-500.0,0.00034246,7]
[322756226,1713247862573,-500.0,0.00034246,7]
[322756227,1713247862583,-500.0,0.00034246,7]
[322756228,1713247862598,-500.0,0.00034246,7]
[322756229,1713247862619,-251.213631,0.00034246,7]
[322756230,1713247862629,-213.06390721,0.00034246,7]
[322756231,1713247862642,-151.0,0.00034246,2]
[322756232,1713247862652,-500.0,0.00034246,7]
[322756233,1713247862662,-151.0,0.00034246,2]
[322756234,1713247862672,-500.21236983,0.00034246,7]
[322756235,1713247862682,-500.0,0.00034246,7]
[322756236,1713247862693,-500.0,0.00034246,7]
[322756237,1713247862704,-500.0,0.00034246,7]
[322756238,1713247862714,-500.0,0.00034246,7]
[322756239,1713247862724,-500.0,0.00034246,7]
[322756240,1713247862735,-500.0,0.00034246,7]
[322756241,1713247862745,-403.66573474,0.00034246,7]
[322756242,1713247862755,-502.17265242,0.00034246,7]
[322756243,1713247862766,-500.0,0.00034246,7]
[322756244,1713247862776,-500.0,0.00034246,7]
[322756245,1713247862786,-151.0,0.00034246,2]
[322756246,1713247862796,-151.0,0.00034246,2]
[322756247,1713247862806,-151.0,0.00034246,2]
[322756248,1713247862818,-151.0,0.00034246,2]
[322756249,1713247862828,-151.0,0.00034246,2]
[322756250,1713247862838,-151.0,0.00034246,2]
[322756251,1713247862849,-151.0,0.00034246,2]
[322756252,1713247862858,-501.22588106,0.00034246,7]
[322756253,1713247862868,-151.0,0.00034246,2]
[322756254,1713247862878,-151.0,0.00034246,2]
[322756255,1713247862890,-151.0,0.00034246,2]
[322756256,1713247862899,-151.0,0.00034246,2]
[322756257,1713247862910,-151.0,0.00034246,2]
[322756258,1713247862920,-151.0,0.00034246,2]
[322756259,1713247862931,-500.0,0.00034246,7]
[322756260,1713247862942,-151.0,0.00034246,2]
[322756261,1713247862951,-151.0,0.00034246,2]
[322756262,1713247862961,-500.0,0.00034246,7]
[322756263,1713247862970,-500.0,0.00034246,7]
[322756264,1713247862979,-207.79506,0.00034246,2]
[322756265,1713247862990,-503.55190382,0.00034246,7]
[322756266,1713247863002,-500.0,0.00034246,7]
[322756267,1713247863013,-500.0,0.00034246,7]
[322756268,1713247863025,-500.0,0.00034246,7]
[322756269,1713247863035,-500.0,0.00034246,7]
[322756270,1713247863046,-500.0,0.00034246,7]
[322756271,1713247863057,-500.0,0.00034246,7]
[322756272,1713247863067,-500.0,0.00034246,7]
[322756273,1713247863078,-500.0,0.00034246,7]
[322756274,1713247863089,-607.13121439,0.00034246,7]
[322756275,1713247863098,-500.0,0.00034246,7]
[322756276,1713247863110,-600.65881317,0.00034246,7]
[322756277,1713247863121,-500.0,0.00034246,7]
[322756278,1713247863133,-500.0,0.00034246,7]
[322756279,1713247863148,-500.0,0.00034246,7]
[322756280,1713247863159,-500.0,0.00034246,7]
[322756281,1713247863169,-500.0,0.00034246,7]
[322756282,1713247863181,-500.0,0.00034246,7]
[322756283,1713247863192,-500.0,0.00034246,7]
[322756284,1713247863202,-500.0,0.00034246,7]
[322756285,1713247863212,-500.0,0.00034246,7]
[322756286,1713247863222,-278.1,0.00034246,7]
[322756287,1713247863232,-500.0,0.00034246,7]
[322756288,1713247863242,-503.17849969,0.00034246,7]
[322756289,1713247863252,-501.09759957,0.00034246,7]
[322756290,1713247863261,-500.0,0.00034246,7]
[322756291,1713247863270,-376.26289436,0.00034246,7]
[322756292,1713247863280,-160.458547,0.00034247,2]
[322756293,1713247863290,-4332.402743,0.0003425,2]
[322756294,1713247863302,-164.63040782,0.00034406,4]
[322756295,1713247863312,-40212.0,0.000345,3]
[322756296,1713247863321,-205.0,0.0003451,9]
[322756297,1713247863330,-6421.89554137,0.00034555,10]
[322756298,1713247863341,-223.584,0.00034621,2]
[322756299,1713247863350,-150.058,0.00034621,2]
[322756300,1713247863361,-1000.0,0.00034715,2]
[322756301,1713247863370,-1000.0,0.00034756,2]
[322756302,1713247863467,-1000.0,0.00034765,2]
[322756303,1713247863478,-1000.0,0.00034774,2]
[322756304,1713247863489,-27084.38647893,0.0003479,2]
[322756305,1713247863501,-153.0,0.00034795,2]
[322756306,1713247863511,-151.0,0.000348,2]
[322756307,1713247863521,-586.0,0.000348,2]
[322756308,1713247863531,-2827.82860515,0.0003488,120]
[322756309,1713247863541,-1000.0,0.00034898,2]
[322756310,1713247863551,-491.0,0.000349,2]
[322756311,1713247863561,-177.0,0.000349,9]
[322756312,1713247863571,-197.409959,0.00034919,2]
[322756313,1713247863582,-167.01626,0.00034919,2]
[322756314,1713247863594,-663.040493,0.00034919,2]
[322756315,1713247863606,-442.026996,0.00034919,2]
[322756316,1713247863615,-789.63984,0.00034919,2]
[322756317,1713247863624,-3172.0,0.0003496,35]
[322756318,1713247863634,-164.0,0.00034969,35]
[322756319,1713247863646,-150.5,0.00034969,35]
[322756320,1713247863655,-3172.0,0.0003497,35]
[322756321,1713247863664,-20821.1596,0.00034976,30]
[322756322,1713247863673,-164.0,0.00034979,35]
[322756323,1713247863683,-150.5,0.00034979,35]
[322756324,1713247863694,-281532.28830648,0.0003498,21]
[322756325,1713247863705,-3172.0,0.0003498,35]
[322756326,1713247863716,-155.21079364,0.00034988,4]
[322756327,1713247863727,-164.0,0.00034989,35]
[322756328,1713247863736,-150.5,0.00034989,35]
[322756329,1713247863745,-3200.0,0.0003499,9]
[322756330,1713247863754,-861.50972097,0.0003499,4]
[322756331,1713247863763,-12048.78381931,0.0003499,4]
[322756332,1713247863773,-179.62404289,0.00034995,4]
[322756333,1713247863782,-1585.39429196,0.00034996,4]
[322756334,1713247863791,-1880.8152916,0.00034997,4]
[322756335,1713247863800,-172.88269857,0.00034997,4]
[322756336,1713247863809,-208.62520155,0.00034998,4]
[322756337,1713247863819,-71728.27775614,0.00034998,2]
[322756338,1713247863828,-1000.0,0.00034998,3]
[322756339,1713247863837,-1000.0,0.00034998,3]
[322756340,1713247863847,-500.0,0.00034999,3]
[322756341,1713247863856,-152.02288926,0.00034999,7]
[322756342,1713247863865,-388490.59456277,0.00035,30]
[322756385,1713249032559,-6464.18946415,0.00027382,2]
[322756386,1713249032583,-1535.81053585,0.00027382,2]
[322756387,1713249032592,-2941.33783919,0.00027383,2]
[322756388,1713249032601,-622.54237814,0.00027396,2]
[322756389,1713249032611,-182.59397,0.00027397,2]
[322756390,1713249032621,-154.78330338,0.0003189,10]
[322756391,1713249032630,-150.0,0.000329,2]
[322756392,1713249032640,-500.0,0.00034,120]
[322756393,1713249032649,-500.0,0.00034,120]
[322756394,1713249032659,-500.0,0.00034,120]
[322756395,1713249032670,-500.0,0.00034,120]
[322756396,1713249032679,-500.0,0.00034,120]
[322756397,1713249032689,-500.0,0.00034,120]
[322756398,1713249032698,-500.0,0.00034,120]
[322756399,1713249032708,-500.0,0.00034,120]
[322756400,1713249032717,-500.0,0.00034,120]
[322756401,1713249032727,-500.0,0.00034,120]
[322756402,1713249032737,-4490.0,0.00034,120]
[322756403,1713249032747,-435.00733469,0.00034145,6]
[322756404,1713249032757,-150.0,0.000342,2]
[322756405,1713249032766,-157.1408082,0.000342,2]
[322756406,1713249032776,-230.3679057,0.00034211,5]
[322756407,1713249032786,-538.85499397,0.00034244,4]
[322756408,1713249032796,-157.46325471,0.00034244,4]
[322756409,1713249032806,-154.86062544,0.00034244,4]
[322756410,1713249032818,-241.01674728,0.00034244,4]
[322756411,1713249032829,-465.51859638,0.00034245,4]
[322756412,1713249032839,-1552.05335749,0.00034245,4]
[322756413,1713249032852,-543.45574776,0.00034245,4]
[322756414,1713249032861,-565.32335955,0.00034245,4]
[322756415,1713249032871,-500.0,0.00034246,7]
[322756416,1713249032881,-505.95918306,0.00034246,7]
[322756417,1713249032890,-541.61829177,0.00034246,7]
[322756418,1713249032900,-499.26759474,0.00034246,7]
[322756419,1713249032909,-153.0,0.000343,2]
[322756420,1713249032918,-155.0,0.00034525,35]
[322756421,1713249032929,-155.0,0.00034535,35]
[322756422,1713249032938,-155.0,0.00034545,35]
[322756423,1713249032949,-167.98399902,0.00034648,3]
[322756424,1713249032958,-2000.0,0.000349,2]
[322756425,1713249032969,-166.95698444,0.000349,30]
[322756740,1713250238923,-1000.0,0.00027264,2]
[322756741,1713250238935,-539.113023,0.00027265,2]
[322756742,1713250238947,-8000.0,0.00027265,2]
[322756743,1713250238958,-154.76784823,0.00027266,2]
[322756744,1713250238969,-2941.33783919,0.00027266,2]
[322756745,1713250238980,-2584.46843205,0.00027267,2]
[322756746,1713250238992,-300.0,0.00027267,2]
[322756747,1713250239004,-300.0,0.00027267,2]
[322756748,1713250239015,-188.59204375,0.00027297,2]
[322756749,1713250239026,-160.483171,0.00027397,2]
[322756750,1713250239037,-299.672183,0.00027397,2]
[322756751,1713250239048,-420.0,0.00029994,2]
[322756752,1713250239059,-169.57825196,0.0003,5]
[322756753,1713250239070,-10629.16568609,0.00031,5]
[322756754,1713250239081,-168.4979865,0.00031501,2]
[322756755,1713250239092,-154.76784823,0.00031941,10]
[322756756,1713250239102,-380.63141781,0.00031942,5]
[322756757,1713250239112,-421.0,0.00032,2]
[322756758,1713250239122,-3000.0,0.00032,4]
[322756759,1713250239131,-191.14907978,0.00032,4]
[322756760,1713250239141,-873.50816198,0.00032043,2]
[322756761,1713250239151,-231.6432979,0.00032044,2]
[322756762,1713250239162,-150.0,0.00032146,2]
[322756763,1713250239174,-587.0,0.00032993,2]
[322756764,1713250239184,-1200.0,0.00033,4]
[322756765,1713250239195,-299.672183,0.00033165,2]
[322756766,1713250239205,-1047.81777676,0.00033298,4]
[322756767,1713250239215,-279.03510671,0.00033331,4]
[322756768,1713250239225,-155.46784283,0.00033331,4]
[322756769,1713250239235,-205.79685127,0.00033331,4]
[322756770,1713250239248,-1697.52332177,0.00033331,4]
[322756771,1713250239259,-1661.59606126,0.00033331,4]
[322756772,1713250239269,-470.50724351,0.00033331,4]
[322756773,1713250239282,-323.82288502,0.00033331,4]
[322756774,1713250239292,-891.07165608,0.00033331,4]
[322756775,1713250239302,-743.84753818,0.00033331,4]
[322756776,1713250239312,-5849.08827499,0.00033331,4]
[322756777,1713250239322,-641.08434525,0.00033331,2]
[322756778,1713250239332,-154.78330338,0.00033331,4]
[322756779,1713250239342,-1663.42959747,0.00033331,4]
[322756780,1713250239351,-263.2,0.00033332,2]
[322756781,1713250239362,-263.2,0.00033332,2]
[322756782,1713250239373,-263.2,0.00033332,2]
[322756783,1713250239382,-263.2,0.00033332,2]
[322756784,1713250239391,-263.2,0.00033332,2]
[322756785,1713250239401,-263.2,0.00033332,2]
[322756786,1713250239410,-263.2,0.00033332,2]
[322756787,1713250239420,-263.2,0.00033332,2]
[322756788,1713250239430,-446.6410241,0.00033332,7]
[322756789,1713250239439,-191.41758175,0.00033332,7]
[322756790,1713250239449,-31142.10625158,0.00033333,5]
[322756791,1713250239459,-521668.46917724,0.00033333,7]
[322756792,1713250240466,-47147.59998783,0.00033333,7]
[322756900,1713251026783,934.72376574,0.00027,120]
[322756952,1713251432054,-44461.33859292,0.00024,4]
[322756954,1713251432065,-1312.92548223,0.00024,4]
[322756955,1713251432076,-283.42969098,0.00024,4]
[322756956,1713251432087,-12405.74425797,0.00024,4]
[322756958,1713251432097,-688.41882977,0.00024897,2]
[322756959,1713251432106,-414.12977772,0.00024898,2]
[322756960,1713251432116,-150.0,0.000249,2]
[322756961,1713251432125,-8000.0,0.00026999,2]
[322756962,1713251432134,-385.49374237,0.00027,2]
[322756963,1713251432145,-155.91156021,0.00027297,2]
[322756964,1713251432154,-300.0,0.00027394,2]
[322756965,1713251432163,-160.890981,0.00027397,2]
[322756966,1713251432173,-239.336953,0.00027397,2]
[322756967,1713251432182,-166.7564901,0.00028782,2]
[322756968,1713251432192,-7466.5842877,0.00028822,2]
[322756969,1713251432201,-166.666666,0.00029095,2]
[322756970,1713251432211,-150.0,0.000299,2]
[322756971,1713251432221,-420.0,0.00030133,2]
[322756972,1713251432230,-154.75239617,0.00030134,2]
[322756973,1713251432239,-220.2131846,0.00030137,2]
[322756974,1713251432248,-380.63141781,0.00030896,5]
[322756975,1713251432258,-541.91313254,0.00030897,2]
[322756976,1713251432267,-421.0,0.00030963,2]
[322756977,1713251432277,-1047.81777676,0.00030963,4]
[322756978,1713251432286,-38987.30646628,0.00030994,4]
[322756979,1713251432298,-6728.31451212,0.00030994,4]
[322756980,1713251432310,-62284.65690664,0.00030994,4]
[322756981,1713251432321,-1697.52332177,0.00030995,4]
[322756982,1713251432332,-155.21079364,0.00030997,4]
[322756983,1713251432341,-179.62404289,0.00030997,4]
[322756984,1713251432350,-164.63040782,0.00030997,4]
[322756985,1713251432359,-205.79685127,0.00030997,4]
[322756986,1713251432368,-154.78330338,0.00030997,4]
[322756987,1713251432377,-155.46784283,0.00030997,4]
[322756988,1713251432386,-323.82288502,0.00030997,4]
[322756989,1713251432395,-1663.42959747,0.00030997,4]
[322756990,1713251432404,-641.08434525,0.00030997,2]
[322756991,1713251432414,-1661.59606126,0.00030997,4]
[322756992,1713251432422,-891.07165608,0.00030997,4]
[322756993,1713251432431,-279.03510671,0.00030997,4]
[322756994,1713251432442,-743.84753818,0.00030997,4]
[322756995,1713251432451,-470.50724351,0.00030997,4]
[322756996,1713251432460,-208.62520155,0.00030998,4]
[322756997,1713251432470,-5849.08827499,0.00030999,4]
[322756998,1713251432479,-1961.42799673,0.00031,2]
[322756999,1713251432488,-10629.16568609,0.00031,5]
[322757000,1713251432498,-541.91313253,0.00031623,2]
[322757001,1713251432507,-154.76784823,0.0003189,10]
[322757002,1713251432517,-553.05704658,0.00031999,2]
[322757003,1713251432527,-3000.0,0.00032,4]
[322757004,1713251432537,-191.14907978,0.00032,4]
[322757005,1713251432546,-14758.38735028,0.00032,120]
[322757017,1713251437954,-12271.81988038,0.00032,120]
[322757018,1713251437966,-746.24566129,0.00032,120]
[322757019,1713251438017,-82223.54710705,0.00032,120]